bitfinex-derivatives/quotes_BTCF0:USTF0_20250508
["timestamp","ask_amount","ask_price","bid_price","bid_amount"]
[1746708567066,0.16698196,99397.0,99396.0,0.3564354]
[1746708568471,0.16547294,99397.0,99396.0,0.3564354]
[1746708568863,0.16547294,99397.0,99396.0,0.4570434]
[1746708569065,0.00251,99408.0,99407.0,0.2011628]
[1746708569265,0.2011487,99415.0,99414.0,0.2011487]
[1746708569564,0.0884,99417.0,99416.0,0.2011446]
[1746708569765,0.0884,99417.0,99416.0,0.2622949]
[1746708570371,0.168,99417.0,99416.0,0.82329309]
[1746708570765,0.168,99417.0,99416.0,0.72179309]
[1746708571864,0.168,99417.0,99416.0,0.7135949]
[1746708572064,0.168,99417.0,99416.0,0.7155949]
[1746708572967,0.168,99417.0,99416.0,0.70016994]
[1746708573676,0.168,99417.0,99416.0,0.70116994]
[1746708574173,0.168,99417.0,99416.0,0.70116645]
[1746708576976,0.168,99417.0,99416.0,0.73136645]
[1746708577768,0.168,99417.0,99416.0,0.73136614]
[1746708578578,0.168,99417.0,99416.0,0.73136617]
[1746708581068,0.168,99417.0,99416.0,0.76426617]
[1746708585476,0.1996,99417.0,99416.0,0.92706617]
[1746708586674,0.1996,99417.0,99416.0,0.92706683]
[1746708586977,0.1996,99417.0,99416.0,0.927066]
[1746708587173,0.1996,99417.0,99416.0,0.92706595]
[1746708588574,0.168,99417.0,99416.0,0.92706596]
[1746708589675,0.168,99417.0,99416.0,0.92706595]
[1746708590379,0.168,99417.0,99416.0,0.92706596]
[1746708591972,0.0327,99437.0,99425.0,0.2011264]
[1746708592172,0.169,99426.0,99425.0,0.96764593]
[1746708592876,0.169,99426.0,99425.0,1.06444593]
[1746708593277,0.168,99426.0,99425.0,1.06544593]
[1746708593476,0.2513516,99450.0,99449.0,0.2010722]
[1746708593784,0.063,99454.0,99453.0,0.2010698]
[1746708593979,0.063,99454.0,99453.0,0.25678857]
[1746708594285,0.168,99454.0,99453.0,0.21678857]
[1746708594676,0.1981,99454.0,99453.0,0.21678857]
[1746708594871,0.1981,99454.0,99453.0,0.26958857]
[1746708595274,0.2001,99454.0,99453.0,0.26958857]
[1746708595471,0.17,99454.0,99453.0,0.2797336]
[1746708595784,0.17,99454.0,99453.0,0.61027895]
[1746708596487,0.17,99454.0,99453.0,0.51027895]
[1746708596783,0.17,99454.0,99453.0,0.51027867]
[1746708596971,0.168,99454.0,99453.0,0.51127867]
[1746708597284,0.168,99454.0,99453.0,0.51127864]
[1746708597480,0.168,99454.0,99453.0,0.49656283]
[1746708597684,0.168,99454.0,99453.0,0.51227869]
[1746708597880,0.168,99454.0,99453.0,0.51227859]
[1746708598679,0.168,99454.0,99453.0,0.41173059]
[1746708598980,0.168,99454.0,99453.0,0.41172937]
[1746708600186,0.168,99454.0,99453.0,0.35172937]
[1746708600377,0.2299,99454.0,99453.0,0.28892937]
[1746708600582,0.2299,99454.0,99453.0,0.27878434]
[1746708600782,0.2299,99454.0,99453.0,0.2630698]
[1746708600984,0.2299,99454.0,99453.0,0.32878621]
[1746708601888,0.2299,99454.0,99453.0,0.33878308]
[1746708602286,0.2299,99454.0,99453.0,0.32306667]
[1746708602487,0.2299,99454.0,99453.0,0.33878339]
[1746708602988,0.2299,99454.0,99453.0,0.33878314]
[1746708604084,0.2299,99454.0,99453.0,0.33878312]
[1746708605084,0.168,99454.0,99453.0,0.47878312]
[1746708605391,0.168,99454.0,99453.0,0.50948312]
[1746708605784,0.168,99454.0,99453.0,0.36948168]
[1746708606593,0.168,99454.0,99453.0,0.49948168]
[1746708606887,0.168,99454.0,99453.0,0.48376667]
[1746708607092,0.168,99454.0,99453.0,0.49948178]
[1746708610593,0.168,99454.0,99453.0,0.46878178]
[1746708610803,0.2631,99454.0,99453.0,0.41878178]
[1746708611301,0.2631,99454.0,99453.0,0.40306667]
[1746708611502,0.2631,99454.0,99453.0,0.45847771]
[1746708612100,0.2631,99454.0,99453.0,0.52377771]
[1746708612801,0.2631,99454.0,99453.0,0.49067771]
[1746708613199,0.2631,99454.0,99453.0,0.49098181]
[1746708615011,0.2631,99454.0,99453.0,0.49098171]
[1746708615309,0.2,99454.0,99453.0,0.49098171]
[1746708615609,0.2,99454.0,99453.0,0.52148171]
[1746708616210,0.2,99454.0,99453.0,0.52148269]
[1746708616910,0.2,99454.0,99453.0,0.49098181]
[1746708617314,0.2324,99454.0,99453.0,0.49098181]
[1746708617814,0.2324,99454.0,99453.0,0.49098182]
[1746708622011,0.2324,99454.0,99453.0,0.49098183]
[1746708623809,0.2324,99454.0,99453.0,0.4909818]
[1746708628006,0.2,99454.0,99453.0,0.4909818]
[1746708628211,0.00251,99461.0,99453.0,0.4909818]
[1746708628212,0.00251,99461.0,99457.0,0.0502652]
[1746708628506,0.0305,99470.0,99469.0,0.2010375]
[1746708628710,0.0305,99470.0,99469.0,0.66755263]
[1746708628920,0.0305,99470.0,99469.0,0.83755263]
[1746708629110,0.0305,99470.0,99469.0,0.93435188]
[1746708629315,0.168,99470.0,99469.0,0.93435186]
[1746708629508,0.0324,99484.0,99483.0,0.2010092]
[1746708629714,0.3009762,99500.0,99485.0,0.2010051]
[1746708629921,0.0324,99490.0,99485.0,0.33671738]
[1746708630310,0.169,99486.0,99485.0,0.44671738]
[1746708630919,0.169,99486.0,99485.0,0.44671507]
[1746708632022,0.1,99500.0,99499.0,0.2009768]
[1746708632323,0.1,99500.0,99499.0,1.04828677]
[1746708632512,0.1,99500.0,99499.0,1.15828516]
[1746708633221,0.268,99500.0,99499.0,1.15828516]
[1746708633617,0.268,99500.0,99499.0,1.16028516]
[1746708634218,0.268,99500.0,99499.0,1.16128516]
[1746708634418,0.268,99500.0,99499.0,1.16128521]
[1746708635024,0.268,99500.0,99499.0,1.17126008]
[1746708635316,0.268,99500.0,99499.0,1.17026008]
[1746708635522,0.268,99500.0,99499.0,1.15755167]
[1746708635724,0.268,99500.0,99499.0,1.17325957]
[1746708638430,0.268,99500.0,99499.0,1.17325998]
[1746708638829,0.268,99500.0,99499.0,1.15755167]
[1746708639029,0.268,99500.0,99499.0,1.17325876]
[1746708639326,0.268,99500.0,99499.0,1.15755167]
[1746708639820,0.268,99500.0,99499.0,1.173084]
[1746708640521,0.268,99500.0,99499.0,1.15755167]
[1746708640721,0.268,99500.0,99499.0,1.17295548]
[1746708642029,0.268,99500.0,99499.0,1.15755167]
[1746708642925,0.268,99500.0,99499.0,1.17276429]
[1746708645322,0.268,99500.0,99499.0,1.20276429]
[1746708646618,0.268,99500.0,99499.0,1.14278942]
[1746708646931,0.268,99500.0,99499.0,1.11278942]
[1746708647733,0.268,99500.0,99499.0,0.97328562]
[1746708647924,0.3326,99500.0,99499.0,0.97328562]
[1746708648727,0.3326,99500.0,99499.0,0.81183161]
[1746708648931,0.3326,99500.0,99499.0,1.04280841]
[1746708654231,0.3326,99500.0,99499.0,1.01280841]
[1746708654428,0.5335748,99500.0,99499.0,1.01280841]
[1746708654627,0.5335748,99500.0,99499.0,1.01318159]
[1746708654828,0.5335748,99500.0,99499.0,0.94318159]
[1746708655235,0.5335748,99500.0,99499.0,0.74220479]
[1746708655437,0.5335748,99500.0,99499.0,0.02061375]
[1746708656237,0.5335748,99500.0,99499.0,0.02053913]
[1746708657938,0.5335748,99500.0,99499.0,0.01853913]
[1746708658334,0.5335748,99500.0,99499.0,0.21951593]
[1746708658641,0.5355748,99500.0,99499.0,0.21755212]
[1746708659339,0.5365748,99500.0,99499.0,0.21755212]
[1746708659740,0.5385748,99500.0,99499.0,0.21655212]
[1746708660137,0.3029,99500.0,99499.0,0.21655212]
[1746708660340,0.3059,99500.0,99499.0,0.62735212]
[1746708660541,0.3049,99500.0,99499.0,0.62735212]
[1746708661828,0.5048748,99500.0,99499.0,0.62735212]
[1746708662227,0.5018748,99500.0,99499.0,0.62748587]
[1746708662431,0.5038748,99500.0,99499.0,0.62748587]
[1746708663042,0.5018748,99500.0,99499.0,0.62748587]
[1746708663228,0.5018748,99500.0,99499.0,0.62848587]
[1746708663636,0.5018748,99500.0,99499.0,0.63048587]
[1746708664642,0.3009,99500.0,99499.0,0.63048587]
[1746708665044,0.5344748,99500.0,99499.0,0.63048587]
[1746708665241,0.5344748,99500.0,99499.0,0.42951016]
[1746708665438,0.5344748,99500.0,99499.0,0.37951016]
[1746708666236,0.5344748,99500.0,99499.0,0.58048696]
[1746708666949,0.5344748,99500.0,99499.0,0.21968696]
[1746708668350,0.3335,99500.0,99499.0,0.21968696]
[1746708668647,0.5344748,99500.0,99499.0,0.21968696]
[1746708669450,0.3335,99500.0,99499.0,0.21968696]
[1746708669638,0.268,99500.0,99499.0,0.32968696]
[1746708669947,0.268,99500.0,99499.0,0.36278696]
[1746708670946,0.268,99500.0,99499.0,0.3627504]
[1746708672945,0.268,99500.0,99499.0,0.3527504]
[1746708673141,0.001,99516.0,99515.0,0.2009445]
[1746708673341,0.001,99516.0,99515.0,0.2166181]
[1746708673541,0.001,99516.0,99515.0,0.2809181]
[1746708673747,0.001,99516.0,99515.0,0.3120181]
[1746708674143,0.169,99516.0,99515.0,0.3120181]
[1746708674341,0.171,99516.0,99515.0,0.3120181]
[1746708674544,0.3719425,99516.0,99515.0,0.2793181]
[1746708675045,0.171,99516.0,99515.0,0.2793181]
[1746708675242,0.204,99516.0,99515.0,0.2793181]
[1746708675643,0.2375,99516.0,99515.0,0.2793181]
[1746708675950,0.2375,99516.0,99515.0,0.2477181]
[1746708676157,0.2375,99516.0,99515.0,0.0156736]
[1746708676158,0.5369305,99516.0,99515.0,0.0156736]
[1746708676349,0.8987305,99516.0,99515.0,0.0156736]
[1746708676652,0.5379305,99516.0,99515.0,0.0156736]
[1746708677751,0.2009486,99513.0,99512.0,0.0328]
[1746708678152,0.3689486,99513.0,99512.0,0.0328]
[1746708679346,0.3699486,99513.0,99512.0,0.0328]
[1746708679548,0.3699486,99513.0,99512.0,0.2337445]
[1746708680048,0.3699486,99513.0,99512.0,0.0328]
[1746708680255,0.2009607,99507.0,99506.0,0.2511993]
[1746708680749,0.4201894,99513.0,99512.0,0.2009506]
[1746708681246,0.3699486,99513.0,99512.0,0.2009506]
[1746708681447,0.3699486,99513.0,99512.0,0.2509506]
[1746708681646,0.3699486,99513.0,99512.0,0.2009506]
[1746708681851,0.3699486,99513.0,99512.0,0.2616506]
[1746708682045,0.3689486,99513.0,99512.0,0.2616506]
[1746708682755,0.3699486,99513.0,99512.0,0.2616506]
[1746708683062,0.3699486,99513.0,99512.0,0.2311506]
[1746708686047,0.37017721,99513.0,99512.0,0.2311506]
[1746708701959,0.43377721,99513.0,99512.0,0.2311506]
[1746708704363,0.43377721,99513.0,99512.0,0.0302]
[1746708704760,0.43377721,99513.0,99512.0,0.2311506]
[1746708705163,0.43377721,99513.0,99512.0,0.0302]
[1746708705555,0.43377721,99513.0,99512.0,0.2311506]
[1746708705860,0.43377721,99513.0,99512.0,0.0302]
[1746708706363,0.43377721,99513.0,99512.0,0.2311506]
[1746708719571,0.43377721,99513.0,99512.0,0.0302]
[1746708719771,0.2009809,99497.0,99496.0,0.3608]
[1746708720071,0.2009809,99497.0,99496.0,0.5927829]
[1746708720273,0.3689809,99497.0,99496.0,0.6239829]
[1746708720574,0.3689809,99497.0,99496.0,0.3918]
[1746708721369,0.3689809,99497.0,99496.0,0.005]
[1746708721776,0.3689809,99497.0,99492.0,0.15379863]
[1746708721777,0.200989,99493.0,99492.0,0.15379863]
[1746708722175,0.469501,99493.0,99492.0,0.15379863]
[1746708723065,0.2010051,99485.0,99484.0,0.2341071]
[1746708724077,0.3690051,99485.0,99484.0,0.2341071]
[1746708724273,0.4297051,99485.0,99484.0,0.2341071]
[1746708724467,0.168,99485.0,99484.0,0.56932234]
[1746708724669,0.168,99485.0,99484.0,0.38932234]
[1746708724868,0.171,99485.0,99484.0,0.37932234]
[1746708725085,0.3750051,99485.0,99484.0,0.38032234]
[1746708725281,0.3750051,99485.0,99484.0,0.25032234]
[1746708725973,0.4031051,99485.0,99484.0,0.24945103]
[1746708726173,0.4337051,99485.0,99484.0,0.24945103]
[1746708726875,0.4317051,99485.0,99484.0,0.24945103]
[1746708727472,0.4327051,99485.0,99484.0,0.24945103]
[1746708727668,0.4337051,99485.0,99484.0,0.24945103]
[1746708728480,0.4337051,99485.0,99484.0,0.24945093]
[1746708730981,0.4337051,99485.0,99484.0,0.04844383]
[1746708731676,0.4036051,99485.0,99484.0,0.04844383]
[1746708732072,0.3730051,99485.0,99484.0,0.24945093]
[1746708733577,0.3710051,99485.0,99484.0,0.24945093]
[1746708734079,0.3730051,99485.0,99484.0,0.24945093]
[1746708734483,0.3730051,99485.0,99484.0,0.04844383]
[1746708734680,0.4061051,99485.0,99484.0,0.04844383]
[1746708734981,0.7669051,99485.0,99484.0,0.04844383]
[1746708735178,0.2010375,99470.0,99469.0,0.2512941]
[1746708735380,0.2010375,99470.0,99469.0,0.3330529]
[1746708735978,0.2010375,99470.0,99469.0,0.34071771]
[1746708736174,0.3690375,99470.0,99469.0,0.34071771]
[1746708736682,0.3690375,99470.0,99469.0,0.34171771]
[1746708737083,0.3690375,99470.0,99469.0,0.34371771]
[1746708737480,0.3690375,99470.0,99469.0,0.29345891]
[1746708737681,0.3690375,99470.0,99469.0,0.29245891]
[1746708737882,0.3710375,99470.0,99469.0,0.29045891]
[1746708739404,0.3710375,99470.0,99469.0,0.32135891]
[1746708739691,0.3710375,99470.0,99469.0,0.0624]
[1746708739981,0.0502613,99466.0,99463.0,0.0325]
[1746708740180,0.2010476,99464.0,99463.0,0.2644496]
[1746708740776,0.2649476,99464.0,99463.0,0.2644496]
[1746708741289,0.4329476,99464.0,99463.0,0.2644496]
[1746708741995,0.4329476,99464.0,99463.0,0.2654496]
[1746708743590,0.4329476,99464.0,99463.0,0.2644496]
[1746708743791,0.4339476,99464.0,99463.0,0.2644496]
[1746708744291,0.4329476,99464.0,99463.0,0.2644496]
[1746708744494,0.4349476,99464.0,99463.0,0.2644496]
[1746708744790,0.4349476,99464.0,99463.0,0.0309]
[1746708744993,0.4349476,99464.0,99463.0,0.2319496]
[1746708747087,0.4349476,99464.0,99463.0,0.24755842]
[1746708748292,0.4030476,99464.0,99463.0,0.24755842]
[1746708750485,0.3710476,99464.0,99463.0,0.24755842]
[1746708753294,0.3710476,99464.0,99463.0,0.24766489]
[1746708754988,0.3710476,99464.0,99463.0,0.2476649]
[1746708758387,0.4016476,99464.0,99463.0,0.2319496]
[1746708758585,0.4016476,99464.0,99463.0,0.2476655]
[1746708761083,0.4330476,99464.0,99463.0,0.2476655]
[1746708762695,0.4016476,99464.0,99463.0,0.2476655]
[1746708763698,0.3710476,99464.0,99463.0,0.2476655]
[1746708763900,0.3710476,99464.0,99463.0,0.2476651]
[1746708764395,0.3710476,99464.0,99463.0,0.24766495]
[1746708765094,0.17,99464.0,99463.0,0.24766495]
[1746708765487,0.3710476,99464.0,99463.0,0.24766495]
[1746708766499,0.3700476,99464.0,99463.0,0.24766495]
[1746708767099,0.169,99464.0,99463.0,0.24766495]
[1746708767299,0.3700476,99464.0,99463.0,0.24766495]
[1746708767496,0.169,99464.0,99463.0,0.60846473]
[1746708768091,0.3700476,99464.0,99463.0,0.60846473]
[1746708769396,0.3700476,99464.0,99463.0,0.60846436]
[1746708769702,0.3690476,99464.0,99463.0,0.60846436]
[1746708769903,0.3690476,99464.0,99463.0,0.60946436]
[1746708770303,0.3690476,99464.0,99463.0,0.24866436]
[1746708772808,0.168,99464.0,99463.0,0.24866436]
[1746708773102,0.168,99464.0,99463.0,0.32866436]
[1746708773695,0.3690476,99464.0,99463.0,0.24866436]
[1746708774302,0.4010476,99464.0,99463.0,0.24866523]
[1746708774699,0.4010476,99464.0,99463.0,0.24866531]
[1746708775502,0.4010476,99464.0,99463.0,0.01671571]
[1746708775699,0.7618476,99464.0,99463.0,0.01671571]
[1746708776601,0.8623876,99464.0,99463.0,0.01671571]
[1746708779113,0.8633876,99464.0,99463.0,0.01571571]
[1746708779416,0.2010577,99459.0,99458.0,0.2010597]
[1746708779607,0.2872977,99459.0,99458.0,0.21637908]
[1746708780108,0.3204977,99459.0,99458.0,0.21637908]
[1746708780310,0.4884977,99459.0,99458.0,0.21637908]
[1746708780706,0.4884977,99459.0,99458.0,0.01531938]
[1746708780906,0.201086,99445.0,99444.0,0.2010879]
[1746708781113,0.369086,99445.0,99444.0,0.2010879]
[1746708782215,0.404286,99445.0,99444.0,0.2010879]
[1746708782723,0.201092,99443.0,99442.0,0.2010914]
[1746708783113,0.2010981,99439.0,99438.0,0.2513686]
[1746708783717,0.2642981,99439.0,99438.0,0.25905261]
[1746708784015,0.2642981,99439.0,99438.0,0.28975261]
[1746708784219,0.4332981,99439.0,99438.0,0.28975261]
[1746708785722,0.4322981,99439.0,99438.0,0.28975261]
[1746708785922,0.4342981,99439.0,99438.0,0.28975261]
[1746708786220,0.4342981,99439.0,99438.0,0.00768401]
[1746708786522,0.2011001,99438.0,99437.0,0.3608]
[1746708787029,0.2640001,99438.0,99437.0,0.3608]
[1746708787320,0.4320001,99438.0,99437.0,0.3608]
[1746708788018,0.4320001,99438.0,99437.0,0.5619021]
[1746708788626,0.4320001,99438.0,99437.0,0.57715799]
[1746708788821,0.4330001,99438.0,99437.0,0.60865799]
[1746708789121,0.4330001,99438.0,99437.0,0.67295799]
[1746708791722,0.4020001,99438.0,99437.0,0.67295799]
[1746708792919,0.4020001,99438.0,99437.0,0.68838654]
[1746708793119,0.4020001,99438.0,99437.0,0.32758654]
[1746708793418,0.4020001,99438.0,99437.0,0.31215799]
[1746708793718,0.4020001,99438.0,99437.0,0.2969021]
[1746708795724,0.4020001,99438.0,99437.0,0.0958]
[1746708796022,0.4020001,99438.0,99437.0,0.0311]
[1746708796225,0.4352001,99438.0,99437.0,0.0311]
[1746708799728,0.4352001,99438.0,99437.0,0.2322021]
[1746708799927,0.7960001,99438.0,99437.0,0.2322021]
[1746708800324,0.4352001,99438.0,99437.0,0.2322021]
[1746708802130,0.4020001,99438.0,99437.0,0.2322021]
[1746708811832,0.2011102,99433.0,99432.0,0.00759311]
[1746708812028,0.2011123,99432.0,99431.0,0.3608]
[1746708812236,0.2343123,99432.0,99431.0,0.3608]
[1746708812430,0.2343123,99432.0,99431.0,0.5619143]
[1746708812630,0.2644123,99432.0,99431.0,0.5619143]
[1746708812831,0.2644123,99432.0,99431.0,0.2011143]
[1746708813137,0.4324123,99432.0,99431.0,0.2011143]
[1746708813327,0.4655123,99432.0,99431.0,0.2011143]
[1746708813527,0.4665123,99432.0,99431.0,0.21640336]
[1746708814028,0.4665123,99432.0,99431.0,0.25040336]
[1746708814234,0.4665123,99432.0,99431.0,0.28320336]
[1746708816039,0.4665123,99432.0,99431.0,0.2679143]
[1746708816527,0.4333123,99432.0,99431.0,0.2679143]
[1746708817429,0.4333123,99432.0,99431.0,0.001]
[1746708817628,0.4333123,99432.0,99431.0,0.2021143]
[1746708817828,0.4333123,99432.0,99431.0,0.001]
[1746708818031,0.4333123,99432.0,99431.0,0.2021143]
[1746708819733,0.4333123,99432.0,99431.0,0.001]
[1746708820238,0.4333123,99432.0,99431.0,0.2021143]
[1746708822639,0.4333123,99432.0,99431.0,0.001]
[1746708823140,0.4333123,99432.0,99431.0,0.5629143]
[1746708826239,0.4333123,99432.0,99431.0,0.3618]
[1746708826543,0.4333123,99432.0,99431.0,0.001]
[1746708827535,0.2011244,99426.0,99425.0,0.00100578]
[1746708827737,0.2864844,99426.0,99425.0,0.00100578]
[1746708827937,0.2011446,99416.0,99415.0,0.00150887]
[1746708828241,0.7299446,99416.0,99415.0,0.00150887]
[1746708828839,0.7923446,99416.0,99415.0,0.00150887]
[1746708829041,0.7923446,99416.0,99415.0,0.21643093]
[1746708832139,0.4003446,99416.0,99415.0,0.28143093]
[1746708832334,0.3691446,99416.0,99415.0,0.28143093]
[1746708832741,0.168,99416.0,99415.0,0.28143093]
[1746708832940,0.3691446,99416.0,99415.0,0.28143093]
[1746708833546,0.3691446,99416.0,99415.0,0.2661466]
[1746708833742,0.168,99416.0,99415.0,0.2661466]
[1746708833938,0.168,99416.0,99415.0,0.3161466]
[1746708834143,0.3691446,99416.0,99415.0,0.3161466]
[1746708841667,0.168,99416.0,99415.0,0.3161466]
[1746708841964,0.3691446,99416.0,99415.0,0.3161466]
[1746708842462,0.168,99416.0,99415.0,0.3161466]
[1746708842658,0.168,99416.0,99415.0,0.7775346]
[1746708844563,0.168,99416.0,99415.0,0.6769466]
[1746708849168,0.3367701,99429.0,99428.0,0.2011203]
[1746708849471,0.3870514,99429.0,99428.0,0.2011203]
[1746708850263,0.5550514,99429.0,99428.0,0.2618203]
[1746708850568,0.5580514,99429.0,99428.0,0.2628203]
[1746708850768,0.4726914,99429.0,99428.0,0.2628203]
[1746708851671,0.4756914,99429.0,99428.0,0.2628203]
[1746708851873,0.4756914,99429.0,99428.0,0.031]
[1746708852271,0.4756914,99429.0,99428.0,0.2321203]
[1746708852675,0.4756914,99429.0,99428.0,0.031]
[1746708852874,0.4756914,99429.0,99428.0,0.2321203]
[1746708853668,0.4756914,99429.0,99428.0,0.031]
[1746708853869,0.4756914,99429.0,99428.0,0.001]
[1746708864284,0.4756914,99429.0,99428.0,0.2021203]
[1746708864984,0.4756914,99429.0,99428.0,0.001]
[1746708865380,0.4756914,99429.0,99428.0,0.2021203]
[1746708866183,0.4756914,99429.0,99428.0,0.001]
[1746708867377,0.4756914,99429.0,99428.0,0.0342]
[1746708867577,0.4756914,99429.0,99428.0,0.2353203]
[1746708867884,0.4756914,99429.0,99428.0,0.0342]
[1746708873195,0.4756914,99429.0,99428.0,0.2353203]
[1746708873989,0.4756914,99429.0,99428.0,0.0342]
[1746708874988,0.4756914,99429.0,99428.0,0.2353203]
[1746708878588,0.4756914,99429.0,99428.0,0.0342]
[1746708882180,0.4756914,99429.0,99428.0,0.2663203]
[1746708885592,0.5390914,99429.0,99428.0,0.2663203]
[1746708886093,0.5390914,99429.0,99428.0,0.0652]
[1746708886895,0.5390914,99429.0,99428.0,0.2663203]
[1746708897894,0.5390914,99429.0,99428.0,0.0652]
[1746708899902,0.5390914,99429.0,99428.0,0.0652]
[1746708901600,0.5390914,99429.0,99428.0,0.2663203]
[1746708907407,0.4756914,99429.0,99428.0,0.2663203]
[1746708907908,0.5060914,99429.0,99428.0,0.2663203]
[1746708909701,0.5384914,99429.0,99428.0,0.2663203]
[1746708914425,0.5384914,99429.0,99428.0,0.0652]
[1746708915420,0.5708914,99429.0,99428.0,0.0342]
[1746708916125,0.5708914,99429.0,99428.0,0.2353203]
[1746708920323,0.5708914,99429.0,99428.0,0.0342]
[1746708921529,0.5708914,99429.0,99428.0,0.0647]
[1746708921723,0.5708914,99429.0,99428.0,0.2658203]
[1746708922829,0.5384914,99429.0,99428.0,0.2658203]
[1746708927327,0.4558101,99429.0,99428.0,0.2658203]
[1746708927532,0.00251,99433.0,99432.0,0.2011123]
[1746708927722,0.08388,99446.0,99444.0,0.201088]
[1746708927723,0.0502718,99445.0,99444.0,0.201088]
[1746708927923,0.3016441,99445.0,99444.0,0.201088]
[1746708928130,0.00150908,99449.0,99448.0,0.2010799]
[1746708928524,0.20258698,99449.0,99448.0,0.2010799]
[1746708929222,0.37058698,99449.0,99448.0,0.2010799]
[1746708929628,0.37058698,99449.0,99448.0,0.2020799]
[1746708930231,0.37058698,99449.0,99448.0,0.2030799]
[1746708930733,0.37058698,99449.0,99448.0,0.2020799]
[1746708934435,0.27058698,99449.0,99448.0,0.2020799]
[1746708938137,0.168,99449.0,99448.0,0.2020799]
[1746708939240,0.3690779,99449.0,99448.0,0.2020799]
[1746708939641,0.168,99449.0,99448.0,0.8328799]
[1746708939840,0.168,99449.0,99448.0,0.6428799]
[1746708940032,0.168,99449.0,99448.0,0.6728799]
[1746708940232,0.00251,99453.0,99452.0,0.2010718]
[1746708940535,0.2020657,99456.0,99455.0,0.2010657]
[1746708940931,0.001,99456.0,99455.0,0.2010657]
[1746708941136,0.169,99456.0,99455.0,0.2010657]
[1746708941442,0.169,99456.0,99455.0,0.2210657]
[1746708942636,0.169,99456.0,99455.0,0.3316137]
[1746708942832,0.169,99456.0,99455.0,0.3236137]
[1746708943344,0.001,99456.0,99455.0,0.3246137]
[1746708945343,0.001,99456.0,99455.0,0.2240657]
[1746708945536,0.001,99456.0,99455.0,0.2560657]
[1746708946240,0.169,99456.0,99455.0,0.2560657]
[1746708951553,0.169,99456.0,99455.0,0.2360657]
[1746708951948,0.3700637,99456.0,99455.0,0.2360657]
[1746708953457,0.3700637,99456.0,99455.0,0.2340657]
[1746708953749,0.3700637,99456.0,99455.0,0.2350657]
[1746708954455,0.3700637,99456.0,99455.0,0.003]
[1746708956143,0.3710637,99456.0,99455.0,0.001]
[1746708956349,0.2010698,99453.0,99452.0,0.2010715]
[1746708957254,0.3690698,99453.0,99452.0,0.2010715]
[1746708957654,0.3700698,99453.0,99452.0,0.2010715]
[1746708958357,0.2010738,99451.0,99450.0,0.2513434]
[1746708958757,0.2665738,99451.0,99450.0,0.2513434]
[1746708959152,0.4345738,99451.0,99450.0,0.2513434]
[1746708959449,0.4345738,99451.0,99450.0,0.2523434]
[1746708961754,0.168,99451.0,99450.0,0.2923434]
[1746708961960,0.168,99451.0,99450.0,0.5353434]
[1746708962156,0.001,99456.0,99455.0,0.2010657]
[1746708962157,0.169,99456.0,99455.0,0.2010657]
[1746708962363,0.169,99456.0,99455.0,0.4810657]
[1746708962653,0.169,99456.0,99455.0,0.2810657]
[1746708962862,0.169,99456.0,99455.0,0.3445657]
[1746708963364,0.001,99456.0,99455.0,0.3465657]
[1746708963753,0.001,99456.0,99455.0,0.3445657]
[1746708963962,0.001,99456.0,99455.0,0.3465657]
[1746708964651,0.001,99456.0,99455.0,0.3485657]
[1746708966255,0.169,99456.0,99455.0,0.3485657]
[1746708969162,0.2351,99456.0,99455.0,0.3485657]
[1746708969657,0.2351,99456.0,99455.0,0.2685657]
[1746708970558,0.4361637,99456.0,99455.0,0.2380657]
[1746708972961,0.4361637,99456.0,99455.0,0.2370657]
[1746708974163,0.4361637,99456.0,99455.0,0.2380657]
[1746708974662,0.4361637,99456.0,99455.0,0.2360657]
[1746708974862,0.4361637,99456.0,99455.0,0.2380657]
[1746708977158,0.4361637,99456.0,99455.0,0.004]
[1746708977363,0.4361637,99456.0,99455.0,0.2050657]
[1746708977863,0.4361637,99456.0,99455.0,0.004]
[1746708978263,0.4361637,99456.0,99455.0,0.2050657]
[1746708978461,0.4361637,99456.0,99455.0,0.2030657]
[1746708978962,0.4371637,99456.0,99455.0,0.2010657]
[1746708979464,0.4361637,99456.0,99455.0,0.2010657]
[1746708979664,0.4371637,99456.0,99455.0,0.2010657]
[1746708980263,0.4381637,99456.0,99455.0,0.2010657]
[1746708981061,0.4381637,99456.0,99453.0,0.0502673]
[1746708981062,0.2010738,99451.0,99450.0,0.3608]
[1746708981260,0.2010738,99451.0,99447.0,0.05027]
[1746708981261,0.2010961,99440.0,99438.0,0.38142815]
[1746708981566,0.2010961,99440.0,99439.0,0.2010908]
[1746708981957,0.2626961,99440.0,99439.0,0.2010908]
[1746708982165,0.4306961,99440.0,99439.0,0.2010908]
[1746708982766,0.4302961,99440.0,99439.0,0.2644908]
[1746708984069,0.4302961,99440.0,99439.0,0.2674908]
[1746708984372,0.4302961,99440.0,99439.0,0.0359]
[1746708984564,0.4302961,99440.0,99439.0,0.2060981]
[1746708987160,0.4302961,99440.0,99439.0,0.005]
[1746708988364,0.4302961,99440.0,99439.0,0.003]
[1746708988673,0.4302961,99440.0,99439.0,0.2340981]
[1746708988858,0.4302961,99440.0,99439.0,0.2320981]
[1746708990771,0.4302961,99440.0,99439.0,0.2310981]
[1746708992970,0.4302961,99440.0,99439.0,0.03]
[1746708993670,0.5132561,99440.0,99439.0,0.03]
[1746708995673,0.5132561,99440.0,99439.0,0.2310981]
[1746708998975,0.5132561,99440.0,99439.0,0.03]
[1746708999374,0.5132561,99440.0,99439.0,0.2310981]
[1746708999572,0.5132561,99440.0,99439.0,0.2632981]
[1746709000880,0.5132561,99440.0,99439.0,0.2332981]
[1746709003074,0.5132561,99440.0,99435.0,0.00150814]
[1746709003075,0.0502749,99439.0,99435.0,0.00150814]
[1746709003278,0.2011042,99436.0,99435.0,0.00150814]
[1746709003470,0.2011042,99436.0,99435.0,0.2011011]
[1746709004272,0.3691042,99436.0,99435.0,0.2011011]
[1746709004978,0.3691042,99436.0,99435.0,0.2343011]
[1746709005178,0.3691042,99436.0,99435.0,0.2353011]
[1746709005379,0.3691042,99436.0,99435.0,0.2363011]
[1746709007180,0.3691042,99436.0,99435.0,0.2694011]
[1746709008682,0.168,99436.0,99435.0,0.2694011]
[1746709008872,0.3691042,99436.0,99435.0,0.2694011]
[1746709010581,0.3691042,99436.0,99435.0,0.2684011]
[1746709010777,0.3691042,99436.0,99435.0,0.2694011]
[1746709010977,0.168,99436.0,99435.0,0.2694011]
[1746709011179,0.3691042,99436.0,99435.0,0.2694011]
[1746709011380,0.3691042,99436.0,99435.0,0.2684011]